[Event "Titled Tuesday Blitz July 11 Early 2023"]
[White "Chen, Max"]
[Black "Horokoskii"]
[WhiteFideId "2622440"]
[WhiteElo "2529"]
[BlackElo "2130"]
[Result "1-0"]
[Round "2"]
[TimeControl "180+2"]
[Date "2023.07.11"]
[WhiteClock "0:01:34"]
[BlackClock "0:01:30"]
[Board "121"]

1. e4 {[%clk 0:02:56]}  e6 {[%clk 0:02:59]} 2. Qe2 {[%clk 0:02:49]}  e5 {[%clk 0:02:59]} 3. Nf3 {[%clk 0:02:48]}  Nc6 {[%clk 0:02:58]} 4. g3 {[%clk 0:02:48]}  Nf6 {[%clk 0:02:58]} 5. Bg2 {[%clk 0:02:41]}  Bc5 {[%clk 0:02:59]} 6. O-O {[%clk 0:02:41]}  O-O {[%clk 0:02:58]} 7. c3 {[%clk 0:02:42]}  a5 {[%clk 0:02:54]} 8. Rd1 {[%clk 0:02:41]}  d6 {[%clk 0:02:53]} 9. d4 {[%clk 0:02:40]}  Ba7 {[%clk 0:02:50]} 10. dxe5 {[%clk 0:02:40]}  Ne8 {[%clk 0:02:42]} 11. Bg5 {[%clk 0:02:33]}  f6 {[%clk 0:02:26]} 12. exf6 {[%clk 0:02:33]}  gxf6 {[%clk 0:02:26]} 13. Bh6 {[%clk 0:02:25]}  Rf7 {[%clk 0:02:25]} 14. Na3 {[%clk 0:02:19]}  Bg4 {[%clk 0:02:23]} 15. h3 {[%clk 0:02:18]}  Bh5 {[%clk 0:02:23]} 16. g4 {[%clk 0:02:15]}  Bg6 {[%clk 0:02:23]} 17. Nh4 {[%clk 0:02:16]}  Ng7 {[%clk 0:02:20]} 18. e5 {[%clk 0:01:58]}  fxe5 {[%clk 0:02:10]} 19. Nxg6 {[%clk 0:01:58]}  Rxf2 {[%clk 0:02:04]} 20. Bd5+ {[%clk 0:01:43]}  Rf7+ {[%clk 0:01:45]} 21. Kg2 {[%clk 0:01:35]}  hxg6 {[%clk 0:01:30]} 22. Rf1 {[%clk 0:01:34]} 1-0


[Site "https://www.chess.com"]

[Event "Titled Tuesday Blitz July 11 Early 2023"]
[White "Hrescak, Ivana"]
[Black "Nihal Sarin"]
[WhiteFideId "14613441"]
[BlackFideId "25092340"]
[WhiteElo "2122"]
[BlackElo "3030"]
[Result "0-1"]
[Round "2"]
[TimeControl "180+2"]
[Date "2023.07.11"]
[WhiteClock "0:00:05"]
[BlackClock "0:02:12"]
[Board "123"]

1. e4 {[%clk 0:03:00]}  e5 {[%clk 0:02:56]} 2. Nf3 {[%clk 0:03:00]}  Nc6 {[%clk 0:02:56]} 3. d4 {[%clk 0:03:01]}  exd4 {[%clk 0:02:56]} 4. Nxd4 {[%clk 0:03:01]}  Nf6 {[%clk 0:02:57]} 5. Nc3 {[%clk 0:02:58]}  Bb4 {[%clk 0:02:56]} 6. Nxc6 {[%clk 0:02:58]}  bxc6 {[%clk 0:02:57]} 7. Bd3 {[%clk 0:02:57]}  O-O {[%clk 0:02:57]} 8. O-O {[%clk 0:02:55]}  d5 {[%clk 0:02:58]} 9. exd5 {[%clk 0:02:55]}  cxd5 {[%clk 0:02:59]} 10. h3 {[%clk 0:02:54]}  h6 {[%clk 0:02:59]} 11. Qf3 {[%clk 0:02:51]}  Rb8 {[%clk 0:02:57]} 12. Bf4 {[%clk 0:02:48]}  Rb6 {[%clk 0:02:47]} 13. Ne2 {[%clk 0:02:37]}  Bb7 {[%clk 0:02:46]} 14. Nd4 {[%clk 0:01:49]}  c5 {[%clk 0:02:28]} 15. Nf5 {[%clk 0:01:49]}  c4 {[%clk 0:02:29]} 16. Be2 {[%clk 0:01:36]}  Ne4 {[%clk 0:02:26]} 17. Be5 {[%clk 0:01:21]}  Rg6 {[%clk 0:02:22]} 18. h4 {[%clk 0:00:59]}  d4 {[%clk 0:02:16]} 19. Bxd4 {[%clk 0:00:05]}  Nd6 {[%clk 0:02:12]} 0-1


[Site "https://www.chess.com"]

[Event "Titled Tuesday Blitz July 11 Early 2023"]
[White "Vokhidov, Shamsiddin"]
[Black "Tymrakiewicz, Rafal"]
[WhiteFideId "14204223"]
[BlackFideId "1108832"]
[WhiteElo "2923"]
[BlackElo "2406"]
[Result "1-0"]
[Round "2"]
[TimeControl "180+2"]
[Date "2023.07.11"]
[WhiteClock "0:02:30"]
[BlackClock "0:00:02"]
[Board "126"]

1. e4 {[%clk 0:03:00]}  Nf6 {[%clk 0:03:00]} 2. Nc3 {[%clk 0:03:01]}  d5 {[%clk 0:02:59]} 3. exd5 {[%clk 0:03:02]}  Nxd5 {[%clk 0:02:59]} 4. Qf3 {[%clk 0:03:02]}  c6 {[%clk 0:02:57]} 5. Bc4 {[%clk 0:03:02]}  Be6 {[%clk 0:02:40]} 6. Bb3 {[%clk 0:03:01]}  g6 {[%clk 0:02:29]} 7. Nge2 {[%clk 0:03:01]}  Bg7 {[%clk 0:02:29]} 8. d4 {[%clk 0:03:01]}  O-O {[%clk 0:02:29]} 9. O-O {[%clk 0:03:01]}  Nxc3 {[%clk 0:02:23]} 10. bxc3 {[%clk 0:03:02]}  Bxb3 {[%clk 0:02:23]} 11. axb3 {[%clk 0:03:03]}  Nd7 {[%clk 0:02:15]} 12. Ba3 {[%clk 0:03:02]}  Re8 {[%clk 0:02:15]} 13. Rad1 {[%clk 0:03:02]}  e6 {[%clk 0:02:14]} 14. c4 {[%clk 0:03:02]}  a5 {[%clk 0:02:05]} 15. Ng3 {[%clk 0:03:00]}  Nf6 {[%clk 0:01:59]} 16. Rfe1 {[%clk 0:02:59]}  a4 {[%clk 0:01:59]} 17. Bb4 {[%clk 0:02:59]}  axb3 {[%clk 0:01:56]} 18. cxb3 {[%clk 0:03:00]}  Bf8 {[%clk 0:01:52]} 19. Bxf8 {[%clk 0:02:57]}  Rxf8 {[%clk 0:01:52]} 20. h3 {[%clk 0:02:55]}  Ra3 {[%clk 0:01:52]} 21. Rd3 {[%clk 0:02:54]}  Kg7 {[%clk 0:01:46]} 22. Ne2 {[%clk 0:02:54]}  Qd6 {[%clk 0:01:32]} 23. Nf4 {[%clk 0:02:53]}  b5 {[%clk 0:01:30]} 24. c5 {[%clk 0:02:51]}  Qc7 {[%clk 0:01:23]} 25. g3 {[%clk 0:02:47]}  Nd5 {[%clk 0:01:12]} 26. Nxd5 {[%clk 0:02:46]}  cxd5 {[%clk 0:01:12]} 27. b4 {[%clk 0:02:45]}  Ra4 {[%clk 0:01:10]} 28. Rb3 {[%clk 0:02:44]}  Rfa8 {[%clk 0:01:09]} 29. Qe2 {[%clk 0:02:44]}  Rb8 {[%clk 0:01:04]} 30. h4 {[%clk 0:02:44]}  h5 {[%clk 0:01:04]} 31. Kg2 {[%clk 0:02:43]}  Kg8 {[%clk 0:00:59]} 32. Qd2 {[%clk 0:02:43]}  Rba8 {[%clk 0:00:56]} 33. Qd3 {[%clk 0:02:42]}  Qe7 {[%clk 0:00:54]} 34. Qxb5 {[%clk 0:02:41]}  Qf6 {[%clk 0:00:54]} 35. Qd3 {[%clk 0:02:39]}  Ra2 {[%clk 0:00:54]} 36. Qe3 {[%clk 0:02:39]}  Rc2 {[%clk 0:00:51]} 37. Rc3 {[%clk 0:02:36]}  Rb2 {[%clk 0:00:48]} 38. Rb3 {[%clk 0:02:36]}  Rc2 {[%clk 0:00:48]} 39. Rc1 {[%clk 0:02:31]}  Rxc1 {[%clk 0:00:45]} 40. Qxc1 {[%clk 0:02:31]}  Qxd4 {[%clk 0:00:46]} 41. c6 {[%clk 0:02:31]}  Ra2 {[%clk 0:00:46]} 42. Qe3 {[%clk 0:02:28]}  Qxe3 {[%clk 0:00:27]} 43. Rxe3 {[%clk 0:02:29]}  Rc2 {[%clk 0:00:28]} 44. b5 {[%clk 0:02:29]}  d4 {[%clk 0:00:27]} 45. Rb3 {[%clk 0:02:29]}  e5 {[%clk 0:00:24]} 46. b6 {[%clk 0:02:29]}  e4 {[%clk 0:00:21]} 47. b7 {[%clk 0:02:29]}  e3 {[%clk 0:00:18]} 48. b8=Q+ {[%clk 0:02:30]}  Kh7 {[%clk 0:00:02]} 49. Qf4 {[%clk 0:02:30]} 1-0


[Site "https://www.chess.com"]

[Event "Titled Tuesday Blitz July 11 Early 2023"]
[White "Stork, Oliver"]
[Black "Antipov, Mikhail Al."]
[WhiteFideId "12955728"]
[BlackFideId "4107012"]
[WhiteElo "2405"]
[BlackElo "2891"]
[Result "0-1"]
[Round "2"]
[TimeControl "180+2"]
[Date "2023.07.11"]
[WhiteClock "0:00:09"]
[BlackClock "0:02:08"]
[Board "127"]

1. e4 {[%clk 0:03:00]}  c5 {[%clk 0:02:58]} 2. Nf3 {[%clk 0:02:53]}  d6 {[%clk 0:02:59]} 3. Nc3 {[%clk 0:02:45]}  Nf6 {[%clk 0:02:58]} 4. d4 {[%clk 0:02:41]}  cxd4 {[%clk 0:02:59]} 5. Nxd4 {[%clk 0:02:41]}  a6 {[%clk 0:03:00]} 6. Qd3 {[%clk 0:02:39]}  Nbd7 {[%clk 0:02:56]} 7. Be2 {[%clk 0:02:32]}  e6 {[%clk 0:02:55]} 8. O-O {[%clk 0:02:25]}  Qc7 {[%clk 0:02:56]} 9. Qg3 {[%clk 0:02:08]}  b5 {[%clk 0:02:52]} 10. a3 {[%clk 0:02:00]}  Bb7 {[%clk 0:02:52]} 11. Bf3 {[%clk 0:01:43]}  h5 {[%clk 0:02:50]} 12. h4 {[%clk 0:01:41]}  Be7 {[%clk 0:02:49]} 13. Rd1 {[%clk 0:01:33]}  Ne5 {[%clk 0:02:42]} 14. Bf4 {[%clk 0:01:26]}  Nfg4 {[%clk 0:02:39]} 15. Bxg4 {[%clk 0:01:21]}  hxg4 {[%clk 0:02:37]} 16. Bg5 {[%clk 0:01:14]}  Rd8 {[%clk 0:02:30]} 17. Re1 {[%clk 0:00:49]}  Bxg5 {[%clk 0:02:24]} 18. hxg5 {[%clk 0:00:49]}  Qe7 {[%clk 0:02:25]} 19. f4 {[%clk 0:00:40]}  gxf3 {[%clk 0:02:25]} 20. Nxf3 {[%clk 0:00:40]}  Rh5 {[%clk 0:02:23]} 21. Nxe5 {[%clk 0:00:24]}  dxe5 {[%clk 0:02:24]} 22. Qxe5 {[%clk 0:00:23]}  Rxg5 {[%clk 0:02:23]} 23. Qf4 {[%clk 0:00:23]}  Qc5+ {[%clk 0:02:13]} 24. Qf2 {[%clk 0:00:20]}  Rd2 {[%clk 0:02:06]} 25. Qxc5 {[%clk 0:00:17]}  Rxc5 {[%clk 0:02:07]} 26. Re2 {[%clk 0:00:10]}  Rxe2 {[%clk 0:02:07]} 27. Nxe2 {[%clk 0:00:09]}  Rxc2 {[%clk 0:02:08]} 0-1


[Site "https://www.chess.com"]

[Event "Titled Tuesday Blitz July 11 Early 2023"]
[White "Romero Ruscalleda, Josep"]
[Black "djokovic74"]
[WhiteFideId "2231859"]
[WhiteElo "2387"]
[BlackElo "2695"]
[Result "0-1"]
[Round "2"]
[TimeControl "180+2"]
[Date "2023.07.11"]
[WhiteClock "0:00:24"]
[BlackClock "0:00:45"]
[Board "135"]

1. e4 {[%clk 0:03:00]}  e5 {[%clk 0:03:00]} 2. Nf3 {[%clk 0:03:00]}  Nf6 {[%clk 0:03:00]} 3. Nxe5 {[%clk 0:02:59]}  d6 {[%clk 0:03:01]} 4. Nf3 {[%clk 0:02:58]}  Nxe4 {[%clk 0:03:00]} 5. Nc3 {[%clk 0:02:57]}  Nxc3 {[%clk 0:03:01]} 6. dxc3 {[%clk 0:02:58]}  Be7 {[%clk 0:03:02]} 7. Bf4 {[%clk 0:02:58]}  O-O {[%clk 0:03:01]} 8. Qd2 {[%clk 0:02:58]}  Nd7 {[%clk 0:03:01]} 9. Bd3 {[%clk 0:02:57]}  Nc5 {[%clk 0:03:01]} 10. h3 {[%clk 0:02:56]}  Bf6 {[%clk 0:02:58]} 11. O-O-O {[%clk 0:02:54]}  Nxd3+ {[%clk 0:02:52]} 12. cxd3 {[%clk 0:02:53]}  Bd7 {[%clk 0:02:52]} 13. d4 {[%clk 0:02:53]}  b5 {[%clk 0:02:46]} 14. Bg5 {[%clk 0:02:50]}  a5 {[%clk 0:02:40]} 15. Bxf6 {[%clk 0:02:50]}  Qxf6 {[%clk 0:02:41]} 16. Qg5 {[%clk 0:02:49]}  Qxg5+ {[%clk 0:02:41]} 17. Nxg5 {[%clk 0:02:49]}  Bf5 {[%clk 0:02:42]} 18. g4 {[%clk 0:02:48]}  Bd7 {[%clk 0:02:39]} 19. f4 {[%clk 0:02:46]}  f6 {[%clk 0:02:38]} 20. Ne4 {[%clk 0:02:39]}  Rfe8 {[%clk 0:02:39]} 21. Rhe1 {[%clk 0:02:39]}  Kf7 {[%clk 0:02:39]} 22. Ng3 {[%clk 0:02:37]}  Bc6 {[%clk 0:02:35]} 23. Kd2 {[%clk 0:02:36]}  Bg2 {[%clk 0:02:31]} 24. Rg1 {[%clk 0:02:10]}  Bxh3 {[%clk 0:02:31]} 25. Ne2 {[%clk 0:02:06]}  f5 {[%clk 0:02:30]} 26. gxf5 {[%clk 0:01:58]}  Bxf5 {[%clk 0:02:30]} 27. Rg5 {[%clk 0:01:58]}  g6 {[%clk 0:02:28]} 28. Rdg1 {[%clk 0:01:57]}  Kf6 {[%clk 0:02:19]} 29. Rh1 {[%clk 0:01:35]}  h5 {[%clk 0:02:14]} 30. Rhg1 {[%clk 0:01:23]}  Re4 {[%clk 0:02:10]} 31. Ng3 {[%clk 0:01:12]}  Rxf4 {[%clk 0:02:09]} 32. Nxf5 {[%clk 0:01:12]}  gxf5 {[%clk 0:01:41]} 33. Rg6+ {[%clk 0:01:12]}  Kf7 {[%clk 0:01:34]} 34. Rg7+ {[%clk 0:01:09]}  Ke6 {[%clk 0:01:35]} 35. Rxc7 {[%clk 0:01:00]}  Rf2+ {[%clk 0:01:35]} 36. Kd3 {[%clk 0:01:00]}  Kf6 {[%clk 0:01:03]} 37. Rd7 {[%clk 0:00:54]}  Re8 {[%clk 0:01:00]} 38. Rxd6+ {[%clk 0:00:45]}  Kf7 {[%clk 0:01:00]} 39. Rd5 {[%clk 0:00:41]}  h4 {[%clk 0:00:50]} 40. Rxb5 {[%clk 0:00:37]}  h3 {[%clk 0:00:50]} 41. Rb7+ {[%clk 0:00:34]}  Re7 {[%clk 0:00:44]} 42. Rxe7+ {[%clk 0:00:30]}  Kxe7 {[%clk 0:00:45]} 43. Rg3 {[%clk 0:00:28]}  h2 {[%clk 0:00:44]} 44. Rh3 {[%clk 0:00:28]}  Rf3+ {[%clk 0:00:44]} 45. Rxf3 {[%clk 0:00:27]}  h1=Q {[%clk 0:00:44]} 46. Rxf5 {[%clk 0:00:27]}  Qb1+ {[%clk 0:00:45]} 47. Kc4 {[%clk 0:00:24]}  Qxf5 {[%clk 0:00:45]} 0-1


[Site "https://www.chess.com"]

[Event "Titled Tuesday Blitz July 11 Early 2023"]
[White "Mayaud, Raphael"]
[Black "Bykhovsky, Anatoly"]
[WhiteFideId "627151"]
[BlackFideId "2806991"]
[WhiteElo "2383"]
[BlackElo "2683"]
[Result "0-1"]
[Round "2"]
[TimeControl "180+2"]
[Date "2023.07.11"]
[WhiteClock "0:00:06"]
[BlackClock "0:01:23"]
[Board "138"]

1. d4 {[%clk 0:02:41]}  Nf6 {[%clk 0:02:59]} 2. Bg5 {[%clk 0:02:41]}  c5 {[%clk 0:02:59]} 3. d5 {[%clk 0:02:39]}  e6 {[%clk 0:03:00]} 4. Nc3 {[%clk 0:02:38]}  h6 {[%clk 0:02:59]} 5. Bxf6 {[%clk 0:02:26]}  Qxf6 {[%clk 0:03:00]} 6. e4 {[%clk 0:02:26]}  a6 {[%clk 0:02:59]} 7. Nf3 {[%clk 0:02:23]}  b5 {[%clk 0:02:59]} 8. e5 {[%clk 0:02:23]}  Qd8 {[%clk 0:02:57]} 9. dxe6 {[%clk 0:02:06]}  dxe6 {[%clk 0:02:58]} 10. Qxd8+ {[%clk 0:02:06]}  Kxd8 {[%clk 0:02:59]} 11. O-O-O+ {[%clk 0:02:06]}  Kc7 {[%clk 0:02:59]} 12. Ne4 {[%clk 0:02:04]}  Bb7 {[%clk 0:02:59]} 13. Nd6 {[%clk 0:02:04]}  Bxf3 {[%clk 0:02:57]} 14. gxf3 {[%clk 0:01:43]}  Bxd6 {[%clk 0:02:56]} 15. Rxd6 {[%clk 0:01:41]}  Nd7 {[%clk 0:02:56]} 16. f4 {[%clk 0:01:41]}  g5 {[%clk 0:02:55]} 17. Bg2 {[%clk 0:01:36]}  gxf4 {[%clk 0:02:36]} 18. Bxa8 {[%clk 0:01:30]}  Rxa8 {[%clk 0:02:37]} 19. Rg1 {[%clk 0:01:15]}  Nxe5 {[%clk 0:02:36]} 20. Rdd1 {[%clk 0:01:16]}  Ng6 {[%clk 0:02:32]} 21. Rd3 {[%clk 0:01:10]}  h5 {[%clk 0:02:25]} 22. Rgd1 {[%clk 0:01:06]}  Ne5 {[%clk 0:02:21]} 23. Rh3 {[%clk 0:00:57]}  Rh8 {[%clk 0:02:21]} 24. Rg1 {[%clk 0:00:44]}  Kd6 {[%clk 0:02:04]} 25. Rg5 {[%clk 0:00:43]}  h4 {[%clk 0:01:54]} 26. b3 {[%clk 0:00:39]}  b4 {[%clk 0:01:45]} 27. Kd2 {[%clk 0:00:38]}  Kd5 {[%clk 0:01:40]} 28. Ke2 {[%clk 0:00:38]}  Ke4 {[%clk 0:01:38]} 29. f3+ {[%clk 0:00:22]}  Kd4 {[%clk 0:01:38]} 30. Kd2 {[%clk 0:00:17]}  a5 {[%clk 0:01:31]} 31. Rg7 {[%clk 0:00:14]}  a4 {[%clk 0:01:26]} 32. Rg5 {[%clk 0:00:13]}  axb3 {[%clk 0:01:23]} 33. axb3 {[%clk 0:00:13]}  Ra8 {[%clk 0:01:23]} 34. Rxh4 {[%clk 0:00:06]}  Nxf3+ {[%clk 0:01:23]} 0-1


[Site "https://www.chess.com"]

[Event "Titled Tuesday Blitz July 11 Early 2023"]
[White "Barbot, Pierre"]
[Black "Lavrik, Dmitry"]
[WhiteFideId "663727"]
[BlackFideId "24113190"]
[WhiteElo "2379"]
[BlackElo "2670"]
[Result "0-1"]
[Round "2"]
[TimeControl "180+2"]
[Date "2023.07.11"]
[WhiteClock "0:00:01"]
[BlackClock "0:00:08"]
[Board "139"]

1. d4 {[%clk 0:03:00]}  Nf6 {[%clk 0:02:59]} 2. c4 {[%clk 0:03:00]}  g6 {[%clk 0:02:59]} 3. Nc3 {[%clk 0:03:00]}  d5 {[%clk 0:02:59]} 4. cxd5 {[%clk 0:02:57]}  Nxd5 {[%clk 0:03:00]} 5. e4 {[%clk 0:02:43]}  Nxc3 {[%clk 0:03:00]} 6. bxc3 {[%clk 0:02:44]}  Bg7 {[%clk 0:03:01]} 7. Bc4 {[%clk 0:02:44]}  c5 {[%clk 0:02:58]} 8. Ne2 {[%clk 0:02:45]}  Nc6 {[%clk 0:02:54]} 9. Be3 {[%clk 0:02:26]}  cxd4 {[%clk 0:02:52]} 10. cxd4 {[%clk 0:02:26]}  b5 {[%clk 0:02:53]} 11. Bd5 {[%clk 0:02:05]}  Bb7 {[%clk 0:02:53]} 12. O-O {[%clk 0:02:05]}  O-O {[%clk 0:02:52]} 13. Rc1 {[%clk 0:01:54]}  Rc8 {[%clk 0:02:47]} 14. Qd2 {[%clk 0:01:51]}  Qa5 {[%clk 0:02:25]} 15. Qxa5 {[%clk 0:01:14]}  Nxa5 {[%clk 0:02:26]} 16. Bxb7 {[%clk 0:01:15]}  Nxb7 {[%clk 0:02:23]} 17. Nc3 {[%clk 0:01:15]}  Nd6 {[%clk 0:00:41]} 18. e5 {[%clk 0:01:05]}  Nf5 {[%clk 0:00:40]} 19. Nxb5 {[%clk 0:01:04]}  Nxe3 {[%clk 0:00:41]} 20. fxe3 {[%clk 0:01:04]}  Bh6 {[%clk 0:00:41]} 21. Kf2 {[%clk 0:00:55]}  Rb8 {[%clk 0:00:38]} 22. a4 {[%clk 0:00:35]}  a6 {[%clk 0:00:30]} 23. Nc7 {[%clk 0:00:36]}  Rb3 {[%clk 0:00:27]} 24. Rfe1 {[%clk 0:00:30]}  Rc8 {[%clk 0:00:25]} 25. Nd5 {[%clk 0:00:24]}  Rxc1 {[%clk 0:00:23]} 26. Rxc1 {[%clk 0:00:24]}  e6 {[%clk 0:00:23]} 27. Nf6+ {[%clk 0:00:22]}  Kg7 {[%clk 0:00:23]} 28. Rc8 {[%clk 0:00:10]}  Bxe3+ {[%clk 0:00:22]} 29. Ke2 {[%clk 0:00:11]}  Bxd4 {[%clk 0:00:17]} 30. Rg8+ {[%clk 0:00:08]}  Kh6 {[%clk 0:00:18]} 31. Ng4+ {[%clk 0:00:02]}  Kg5 {[%clk 0:00:16]} 32. h3 {[%clk 0:00:01]}  h5 {[%clk 0:00:14]} 33. Nf6 {[%clk 0:00:01]}  Bxe5 {[%clk 0:00:13]} 34. Ne4+ {[%clk 0:00:02]}  Kf5 {[%clk 0:00:13]} 35. Nc5 {[%clk 0:00:02]}  Rb2+ {[%clk 0:00:13]} 36. Kd3 {[%clk 0:00:02]}  a5 {[%clk 0:00:11]} 37. g4+ {[%clk 0:00:01]}  hxg4 {[%clk 0:00:11]} 38. hxg4+ {[%clk 0:00:01]}  Kxg4 {[%clk 0:00:12]} 39. Ke4 {[%clk 0:00:02]}  Bf4 {[%clk 0:00:09]} 40. Rf8 {[%clk 0:00:02]}  Rb4+ {[%clk 0:00:10]} 41. Kd3 {[%clk 0:00:02]}  Bd6 {[%clk 0:00:08]} 42. Rxf7 {[%clk 0:00:01]}  Bxc5 {[%clk 0:00:08]} 43. Rf6 {[%clk 0:00:02]}  Rd4+ {[%clk 0:00:08]} 44. Kc3 {[%clk 0:00:02]}  Re4 {[%clk 0:00:07]} 45. Rxg6+ {[%clk 0:00:02]}  Kf5 {[%clk 0:00:07]} 46. Rg8 {[%clk 0:00:03]}  Bb4+ {[%clk 0:00:08]} 47. Kd3 {[%clk 0:00:03]}  Rh4 {[%clk 0:00:07]} 48. Rf8+ {[%clk 0:00:02]}  Ke5 {[%clk 0:00:08]} 49. Rd8 {[%clk 0:00:02]}  Rh3+ {[%clk 0:00:08]} 50. Ke2 {[%clk 0:00:01]}  Ke4 {[%clk 0:00:08]} 0-1


[Site "https://www.chess.com"]

[Event "Titled Tuesday Blitz July 11 Early 2023"]
[White "Ahmad, Khagan"]
[Black "Llanos, Guillermo"]
[WhiteFideId "13431552"]
[BlackFideId "100358"]
[WhiteElo "2647"]
[BlackElo "2377"]
[Result "0-1"]
[Round "2"]
[TimeControl "180+2"]
[Date "2023.07.11"]
[WhiteClock "0:00:01"]
[BlackClock "0:00:12"]
[Board "140"]

1. Nf3 {[%clk 0:03:00]}  d5 {[%clk 0:02:53]} 2. d4 {[%clk 0:02:51]}  Nf6 {[%clk 0:02:50]} 3. c4 {[%clk 0:02:49]}  e6 {[%clk 0:02:49]} 4. Nc3 {[%clk 0:02:45]}  a6 {[%clk 0:02:48]} 5. cxd5 {[%clk 0:02:42]}  exd5 {[%clk 0:02:47]} 6. Bg5 {[%clk 0:02:41]}  Be6 {[%clk 0:02:41]} 7. e3 {[%clk 0:02:39]}  Nbd7 {[%clk 0:02:40]} 8. Bd3 {[%clk 0:02:34]}  c6 {[%clk 0:02:38]} 9. O-O {[%clk 0:02:25]}  Bd6 {[%clk 0:02:38]} 10. h3 {[%clk 0:01:57]}  Qc7 {[%clk 0:02:37]} 11. Qd2 {[%clk 0:01:12]}  h6 {[%clk 0:02:12]} 12. Bf4 {[%clk 0:01:09]}  Bxf4 {[%clk 0:01:47]} 13. exf4 {[%clk 0:01:10]}  g6 {[%clk 0:01:27]} 14. f5 {[%clk 0:01:03]}  gxf5 {[%clk 0:01:25]} 15. Nh4 {[%clk 0:01:00]}  Ne4 {[%clk 0:01:23]} 16. Qe2 {[%clk 0:00:47]}  Qf4 {[%clk 0:01:10]} 17. g3 {[%clk 0:00:36]}  Qg5 {[%clk 0:00:53]} 18. Ng2 {[%clk 0:00:23]}  O-O-O {[%clk 0:00:48]} 19. h4 {[%clk 0:00:22]}  Qg7 {[%clk 0:00:45]} 20. Nf4 {[%clk 0:00:20]}  Qxd4 {[%clk 0:00:43]} 21. Rad1 {[%clk 0:00:16]}  Qf6 {[%clk 0:00:40]} 22. Nxe4 {[%clk 0:00:11]}  fxe4 {[%clk 0:00:40]} 23. Bxa6 {[%clk 0:00:12]}  bxa6 {[%clk 0:00:34]} 24. Qxa6+ {[%clk 0:00:13]}  Kc7 {[%clk 0:00:34]} 25. Rc1 {[%clk 0:00:10]}  Nb8 {[%clk 0:00:33]} 26. Qa7+ {[%clk 0:00:09]}  Kd6 {[%clk 0:00:33]} 27. Qc5+ {[%clk 0:00:09]}  Kd7 {[%clk 0:00:33]} 28. b4 {[%clk 0:00:09]}  Ke8 {[%clk 0:00:32]} 29. b5 {[%clk 0:00:08]}  cxb5 {[%clk 0:00:32]} 30. Nh5 {[%clk 0:00:08]}  Qe7 {[%clk 0:00:31]} 31. Qd4 {[%clk 0:00:07]}  Rg8 {[%clk 0:00:27]} 32. Nf6+ {[%clk 0:00:07]}  Kf8 {[%clk 0:00:28]} 33. Nh7+ {[%clk 0:00:07]}  Ke8 {[%clk 0:00:27]} 34. Nf6+ {[%clk 0:00:07]}  Kf8 {[%clk 0:00:27]} 35. Nxg8 {[%clk 0:00:08]}  Kxg8 {[%clk 0:00:27]} 36. Rc5 {[%clk 0:00:04]}  b4 {[%clk 0:00:25]} 37. Rfc1 {[%clk 0:00:02]}  Nd7 {[%clk 0:00:24]} 38. Rc7 {[%clk 0:00:03]}  Qf6 {[%clk 0:00:21]} 39. Qe3 {[%clk 0:00:02]}  Re8 {[%clk 0:00:18]} 40. Rc8 {[%clk 0:00:02]}  Rxc8 {[%clk 0:00:17]} 41. Rxc8+ {[%clk 0:00:03]}  Kg7 {[%clk 0:00:17]} 42. Rc1 {[%clk 0:00:03]}  Ne5 {[%clk 0:00:16]} 43. Rb1 {[%clk 0:00:03]}  Nd3 {[%clk 0:00:15]} 44. Rf1 {[%clk 0:00:03]}  Bg4 {[%clk 0:00:14]} 45. Rb1 {[%clk 0:00:02]}  Bf3 {[%clk 0:00:14]} 46. Kh2 {[%clk 0:00:02]}  d4 {[%clk 0:00:14]} 47. Qd2 {[%clk 0:00:02]}  Bg4 {[%clk 0:00:13]} 48. Rf1 {[%clk 0:00:02]}  Qf3 {[%clk 0:00:13]} 49. Kg1 {[%clk 0:00:02]}  Bh3 {[%clk 0:00:12]} 50. Rc1 {[%clk 0:00:01]}  Qg2# {[%clk 0:00:12]} 0-1


[Site "https://www.chess.com"]

[Event "Titled Tuesday Blitz July 11 Early 2023"]
[White "Harriott, Tyrell"]
[Black "Haug, Havard"]
[WhiteFideId "2086484"]
[BlackFideId "1547887"]
[WhiteElo "2377"]
[BlackElo "2637"]
[Result "0-1"]
[Round "2"]
[TimeControl "180+2"]
[Date "2023.07.11"]
[WhiteClock "0:00:40"]
[BlackClock "0:01:39"]
[Board "141"]

1. d4 {[%clk 0:02:52]}  d5 {[%clk 0:02:58]} 2. e3 {[%clk 0:02:51]}  c5 {[%clk 0:02:55]} 3. c3 {[%clk 0:02:50]}  Nf6 {[%clk 0:02:54]} 4. Bd3 {[%clk 0:02:50]}  g6 {[%clk 0:02:52]} 5. f4 {[%clk 0:02:50]}  Nc6 {[%clk 0:02:51]} 6. Nf3 {[%clk 0:02:50]}  cxd4 {[%clk 0:02:48]} 7. exd4 {[%clk 0:02:50]}  Bf5 {[%clk 0:02:48]} 8. O-O {[%clk 0:02:49]}  Bxd3 {[%clk 0:02:47]} 9. Qxd3 {[%clk 0:02:50]}  Ne4 {[%clk 0:02:48]} 10. Nbd2 {[%clk 0:02:48]}  f5 {[%clk 0:02:48]} 11. Ne5 {[%clk 0:02:48]}  Bg7 {[%clk 0:02:47]} 12. Qb5 {[%clk 0:02:45]}  Bxe5 {[%clk 0:02:34]} 13. fxe5 {[%clk 0:02:43]}  Qd7 {[%clk 0:02:34]} 14. Nxe4 {[%clk 0:02:42]}  dxe4 {[%clk 0:02:31]} 15. Bh6 {[%clk 0:02:41]}  O-O-O {[%clk 0:02:27]} 16. a4 {[%clk 0:02:39]}  Qd5 {[%clk 0:02:26]} 17. Qe2 {[%clk 0:02:37]}  Rhg8 {[%clk 0:02:22]} 18. Qe3 {[%clk 0:02:34]}  Rd7 {[%clk 0:02:14]} 19. a5 {[%clk 0:02:34]}  a6 {[%clk 0:02:11]} 20. b4 {[%clk 0:02:32]}  Qc4 {[%clk 0:02:06]} 21. Rad1 {[%clk 0:02:29]}  e6 {[%clk 0:02:05]} 22. Bg5 {[%clk 0:02:28]}  Ne7 {[%clk 0:02:04]} 23. Bxe7 {[%clk 0:02:28]}  Rxe7 {[%clk 0:02:05]} 24. Rc1 {[%clk 0:02:21]}  Rc7 {[%clk 0:02:03]} 25. Qg5 {[%clk 0:02:20]}  Qb3 {[%clk 0:01:56]} 26. Qf6 {[%clk 0:02:13]}  Re8 {[%clk 0:01:55]} 27. Qh4 {[%clk 0:02:12]}  Rxc3 {[%clk 0:01:53]} 28. Qxh7 {[%clk 0:02:04]}  e3 {[%clk 0:01:48]} 29. Qxg6 {[%clk 0:02:03]}  Rd8 {[%clk 0:01:47]} 30. Rxc3+ {[%clk 0:01:55]}  Qxc3 {[%clk 0:01:48]} 31. Qxe6+ {[%clk 0:01:55]}  Kb8 {[%clk 0:01:48]} 32. Qe7 {[%clk 0:01:42]}  Rc8 {[%clk 0:01:41]} 33. Qd6+ {[%clk 0:01:41]}  Ka8 {[%clk 0:01:41]} 34. g4 {[%clk 0:00:47]}  e2 {[%clk 0:01:39]} 35. g5 {[%clk 0:00:40]}  exf1=Q+ {[%clk 0:01:38]} 36. Kxf1 {[%clk 0:00:41]}  Qf3+ {[%clk 0:01:38]} 37. Ke1 {[%clk 0:00:41]}  Qe3+ {[%clk 0:01:38]} 38. Kf1 {[%clk 0:00:40]}  Rc1+ {[%clk 0:01:39]} 39. Kg2 {[%clk 0:00:40]}  Rg1# {[%clk 0:01:39]} 0-1


[Site "https://www.chess.com"]